[Event "Chess.com Isle of Man Masters"]
[Site "Villa Marina, Douglas, Isle of Man, United Kingdom"]
[Date "2018.10.22"]
[Round "3.20"]
[White "Praggnanandhaa, R"]
[Black "Eljanov, Pavel"]
[Result "1-0"]
[TimeControl "40 moves in 100 minutes, f.b. 20 moves in 50 minutes f.b. 15 minutes with a 30 second increment from move 0"]
[WhiteElo "2519"]
[BlackElo "2703"]

1. e4 {[%clk 01:40:38]} {[%emt 00:00:21]} c5 {[%clk 01:40:50]} {[%emt
00:00:10]} 2. Nf3 {[%clk 01:41:02]} {[%emt 00:00:06]} Nc6 {[%clk 01:41:16]}
{[%emt 00:00:04]} 3. d4 {[%clk 01:40:01]} {[%emt 00:01:31]} cxd4 {[%clk
01:41:41]} {[%emt 00:00:05]} 4. Nxd4 {[%clk 01:40:27]} {[%emt 00:00:04]} Nf6
{[%clk 01:42:06]} {[%emt 00:00:05]} 5. Nc3 {[%clk 01:40:51]} {[%emt 00:00:06]}
d6 {[%clk 01:42:33]} {[%emt 00:00:03]} 6. Bg5 {[%clk 01:40:16]} {[%emt
00:01:05]} e6 {[%clk 01:42:55]} {[%emt 00:00:07]} 7. Qd2 {[%clk 01:40:17]}
{[%emt 00:00:29]} a6 {[%clk 01:43:00]} {[%emt 00:00:26]} 8. O-O-O {[%clk
01:39:01]} {[%emt 00:01:46]} Be7 {[%clk 01:42:54]} {[%emt 00:00:35]} 9. f3
{[%clk 01:36:41]} {[%emt 00:02:50]} Qc7 {[%clk 01:41:34]} {[%emt 00:01:50]} 10.
h4 {[%clk 01:32:58]} {[%emt 00:04:13]} Nxd4 {[%clk 01:41:35]} {[%emt 00:00:30]}
11. Qxd4 {[%clk 01:33:25]} {[%emt 00:00:02]} b5 {[%clk 01:41:50]} {[%emt
00:00:15]} 12. Qd2 {[%clk 01:29:02]} {[%emt 00:04:53]} Bb7 {[%clk 01:24:50]}
{[%emt 00:17:30]} 13. Kb1 {[%clk 01:17:04]} {[%emt 00:12:27]} O-O {[%clk
01:16:11]} {[%emt 00:09:09]} 14. Ne2 {[%clk 01:13:12]} {[%emt 00:04:22]} Rac8
{[%clk 00:59:06]} {[%emt 00:17:36]} 15. Nd4 {[%clk 01:10:17]} {[%emt 00:03:25]}
Rfe8 {[%clk 00:46:54]} {[%emt 00:12:42]} 16. g4 {[%clk 00:49:39]} {[%emt
00:21:08]} Nd7 {[%clk 00:38:49]} {[%emt 00:08:35]} 17. Bxe7 {[%clk 00:41:12]}
{[%emt 00:08:57]} Rxe7 {[%clk 00:39:15]} {[%emt 00:00:04]} 18. h5 {[%clk
00:40:01]} {[%emt 00:01:41]} d5 {[%clk 00:39:32]} {[%emt 00:00:13]} 19. h6
{[%clk 00:34:13]} {[%emt 00:06:18]} g6 {[%clk 00:39:40]} {[%emt 00:00:22]} 20.
exd5 {[%clk 00:28:29]} {[%emt 00:06:14]} Bxd5 {[%clk 00:40:05]} {[%emt
00:00:05]} 21. Bd3 {[%clk 00:28:43]} {[%emt 00:00:15]} Qe5 {[%clk 00:35:28]}
{[%emt 00:05:07]} 22. Be4 {[%clk 00:25:04]} {[%emt 00:04:09]} Bxe4 {[%clk
00:34:20]} {[%emt 00:01:38]} 23. fxe4 {[%clk 00:25:06]} {[%emt 00:00:28]} Nf6
{[%clk 00:26:25]} {[%emt 00:08:25]} 24. Rhe1 {[%clk 00:15:50]} {[%emt
00:09:46]} Rd7 {[%clk 00:25:52]} {[%emt 00:01:03]} 25. g5 {[%clk 00:12:06]}
{[%emt 00:04:14]} Ng4 {[%clk 00:24:14]} {[%emt 00:02:08]} 26. Qg2 {[%clk
00:06:13]} {[%emt 00:06:23]} Qxg5 {[%clk 00:06:38]} {[%emt 00:18:07]} 27. e5
{[%clk 00:03:24]} {[%emt 00:03:19]} Qf4 {[%clk 00:04:25]} {[%emt 00:02:43]} 28.
Nc6 {[%clk 00:01:54]} {[%emt 00:02:00]} Ne3 {[%clk 00:03:38]} {[%emt 00:01:17]}
29. Rxd7 {[%clk 00:01:46]} {[%emt 00:00:38]} Nxg2 {[%clk 00:04:04]} {[%emt
00:00:04]} 30. Ne7+ {[%clk 00:02:03]} {[%emt 00:00:13]} Kf8 {[%clk 00:02:06]}
{[%emt 00:02:28]} 31. Nxc8 {[%clk 00:02:32]} {[%emt 00:00:02]} Qxh6 {[%clk
00:02:29]} {[%emt 00:00:06]} 32. Rf1 {[%clk 00:02:00]} {[%emt 00:01:02]} Nf4
{[%clk 00:02:17]} {[%emt 00:00:42]} 33. Nd6 {[%clk 00:02:04]} {[%emt 00:00:27]}
g5 {[%clk 00:02:29]} {[%emt 00:00:17]} 34. Nxf7 {[%clk 00:00:44]} {[%emt
00:01:50]} Qg7 {[%clk 00:01:22]} {[%emt 00:01:37]} 35. Rd8+ {[%clk 00:00:35]}
{[%emt 00:00:40]} Ke7 {[%clk 00:01:03]} {[%emt 00:00:49]} 36. Ra8 {[%clk
00:00:42]} {[%emt 00:00:23]} Qxf7 {[%clk 00:00:49]} {[%emt 00:00:45]} 37. Ra7+
{[%clk 00:01:07]} {[%emt 00:00:05]} Kf8 {[%clk 00:01:14]} {[%emt 00:00:04]} 38.
Rxf7+ {[%clk 00:01:33]} {[%emt 00:00:04]} Kxf7 {[%clk 00:01:42]} {[%emt
00:00:03]} 39. b3 {[%clk 00:01:23]} {[%emt 00:00:41]} h5 {[%clk 00:02:00]}
{[%emt 00:00:10]} 40. c4 {[%clk 00:01:32]} {[%emt 00:00:22]} bxc4 {[%clk
00:02:20]} {[%emt 00:00:10]} 41. bxc4 {[%clk 00:01:38]} {[%emt 00:00:25]} h4
{[%clk 00:29:53]} {[%emt 00:22:56]} 42. c5 {[%clk 00:41:59]} {[%emt 00:10:09]}
Ke7 {[%clk 00:22:34]} {[%emt 00:07:49]} 43. Rd1 {[%clk 00:32:02]} {[%emt
00:10:27]} h3 {[%clk 00:22:30]} {[%emt 00:00:34]} 44. c6 {[%clk 00:29:05]}
{[%emt 00:03:27]} Nd5 {[%clk 00:22:57]} {[%emt 00:00:03]} 45. Rg1 {[%clk
00:29:02]} {[%emt 00:00:33]} h2 {[%clk 00:12:17]} {[%emt 00:11:10]} 46. Rh1
{[%clk 00:29:25]} {[%emt 00:00:07]} Nb4 {[%clk 00:12:36]} {[%emt 00:00:10]} 47.
c7 {[%clk 00:26:21]} {[%emt 00:03:34]} Kd7 {[%clk 00:13:03]} {[%emt 00:00:03]}
48. Rxh2 {[%clk 00:26:40]} {[%emt 00:00:11]} Kxc7 {[%clk 00:13:21]} {[%emt
00:00:12]} 49. Rh6 {[%clk 00:26:54]} {[%emt 00:00:15]} Kd7 {[%clk 00:09:14]}
{[%emt 00:04:38]} 50. Rg6 {[%clk 00:27:07]} {[%emt 00:00:17]} a5 {[%clk
00:08:18]} {[%emt 00:01:26]} 51. Rxg5 {[%clk 00:19:54]} {[%emt 00:07:43]} Kc6
{[%clk 00:08:44]} {[%emt 00:00:04]} 52. Kb2 {[%clk 00:19:37]} {[%emt 00:00:46]}
Kd5 {[%clk 00:06:39]} {[%emt 00:02:35]} 53. Kb3 {[%clk 00:18:41]} {[%emt
00:01:26]} Kd4 {[%clk 00:06:31]} {[%emt 00:00:38]} 54. Rh5 {[%clk 00:14:14]}
{[%emt 00:04:57]} Nc6 {[%clk 00:04:58]} {[%emt 00:02:04]} 55. Ka4 {[%clk
00:13:48]} {[%emt 00:00:55]} Kc4 {[%clk 00:03:50]} {[%emt 00:01:38]} 56. Rh6
{[%clk 00:11:15]} {[%emt 00:03:03]} Kd5 {[%clk 00:04:07]} {[%emt 00:00:12]} 57.
Kb5 {[%clk 00:11:09]} {[%emt 00:00:37]} Nxe5 {[%clk 00:03:54]} {[%emt
00:00:44]} 58. Rh5 {[%clk 00:10:14]} {[%emt 00:01:25]} Kd4 {[%clk 00:04:11]}
{[%emt 00:00:13]} 59. Kxa5 {[%clk 00:10:25]} {[%emt 00:00:19]} Nd3 {[%clk
00:03:22]} {[%emt 00:01:19]} 60. Kb5 {[%clk 00:07:43]} {[%emt 00:03:12]} e5
{[%clk 00:03:44]} {[%emt 00:00:08]} 61. a4 {[%clk 00:07:49]} {[%emt 00:00:24]}
Nf4 {[%clk 00:13:51]} {[%emt 00:05:23]} 62. Rh4 {[%clk 00:19:55]} {[%emt
00:03:24]} Kd5 {[%clk 00:13:25]} {[%emt 00:00:57]} 63. a5 {[%clk 00:19:40]}
{[%emt 00:00:45]} Ne6 {[%clk 00:13:49]} {[%emt 00:00:05]} 64. Rc4 {[%clk
00:19:40]} {[%emt 00:00:30]} 1-0

[Event "Chess.com Isle of Man Masters"]
[Site "Villa Marina, Douglas, Isle of Man, United Kingdom"]
[Date "2018.10.22"]
[Round "3.21"]
[White "Almasi, Zoltan"]
[Black "Kobo, Ori"]
[Result "1-0"]
[TimeControl "40 moves in 100 minutes, f.b. 20 moves in 50 minutes f.b. 15 minutes with a 30 second increment from move 0"]
[WhiteElo "2702"]
[BlackElo "2505"]

1. e4 {[%clk 01:40:53]} {[%emt 00:00:05]} g6 {[%clk 01:40:41]} {[%emt
00:00:19]} 2. d4 {[%clk 01:41:13]} {[%emt 00:00:11]} Bg7 {[%clk 01:41:04]}
{[%emt 00:00:06]} 3. Nc3 {[%clk 01:41:23]} {[%emt 00:00:20]} d6 {[%clk
01:41:15]} {[%emt 00:00:19]} 4. Be3 {[%clk 01:41:30]} {[%emt 00:00:23]} Nf6
{[%clk 01:41:29]} {[%emt 00:00:15]} 5. f3 {[%clk 01:28:44]} {[%emt 00:13:17]}
c6 {[%clk 01:34:30]} {[%emt 00:07:28]} 6. Qd2 {[%clk 01:28:29]} {[%emt
00:00:47]} b5 {[%clk 01:34:39]} {[%emt 00:00:20]} 7. O-O-O {[%clk 01:22:18]}
{[%emt 00:06:42]} Qa5 {[%clk 01:32:34]} {[%emt 00:02:35]} 8. Kb1 {[%clk
01:22:33]} {[%emt 00:00:15]} Nbd7 {[%clk 01:30:04]} {[%emt 00:02:59]} 9. Bh6
{[%clk 01:08:00]} {[%emt 00:15:03]} Bxh6 {[%clk 01:29:51]} {[%emt 00:00:43]} 10.
Qxh6 {[%clk 01:08:28]} {[%emt 00:00:02]} b4 {[%clk 01:28:45]} {[%emt 00:01:36]}
11. Nce2 {[%clk 01:08:45]} {[%emt 00:00:13]} c5 {[%clk 01:29:10]} {[%emt
00:00:05]} 12. Nh3 {[%clk 00:59:38]} {[%emt 00:09:37]} c4 {[%clk 00:58:17]}
{[%emt 00:31:22]} 13. Nc1 {[%clk 00:57:24]} {[%emt 00:02:45]} Ba6 {[%clk
00:52:27]} {[%emt 00:06:20]} 14. Ng5 {[%clk 00:56:54]} {[%emt 00:01:00]} Nb6
{[%clk 00:49:49]} {[%emt 00:03:08]} 15. Qg7 {[%clk 00:42:19]} {[%emt 00:15:06]}
Rf8 {[%clk 00:45:09]} {[%emt 00:05:08]} 16. e5 {[%clk 00:18:48]} {[%emt
00:24:02]} dxe5 {[%clk 00:36:52]} {[%emt 00:08:47]} 17. dxe5 {[%clk 00:19:02]}
{[%emt 00:00:16]} Nfd5 {[%clk 00:35:53]} {[%emt 00:01:28]} 18. e6 {[%clk
00:06:11]} {[%emt 00:13:22]} O-O-O {[%clk 00:18:36]} {[%emt 00:17:45]} 19. exf7
{[%clk 00:06:37]} {[%emt 00:00:06]} Na4 {[%clk 00:12:11]} {[%emt 00:06:54]} 20.
Ne4 {[%clk 00:07:01]} {[%emt 00:00:06]} Nac3+ {[%clk 00:00:36]} {[%emt
00:12:06]} 21. bxc3 {[%clk 00:07:05]} {[%emt 00:00:26]} Nxc3+ {[%clk 00:00:37]}
{[%emt 00:00:29]} 22. Nxc3 {[%clk 00:07:30]} {[%emt 00:00:05]} bxc3 {[%clk
00:00:44]} {[%emt 00:00:23]} 23. Rxd8+ {[%clk 00:04:37]} {[%emt 00:03:23]} Rxd8
{[%clk 00:01:13]} 24. Bxc4 {[%clk 00:04:45]} {[%emt 00:00:22]} Qa3 {[%clk
00:00:31]} {[%emt 00:01:12]} 25. Bxa6+ {[%clk 00:04:51]} {[%emt 00:00:24]} Kc7
{[%clk 00:00:39]} {[%emt 00:00:23]} 26. Qe5+ {[%clk 00:05:04]} {[%emt
00:00:17]} Rd6 {[%clk 00:00:34]} {[%emt 00:00:34]} 27. Nd3 {[%clk 00:04:57]}
{[%emt 00:00:37]} 1-0

[Event "Chess.com Isle of Man Masters"]
[Site "Villa Marina, Douglas, Isle of Man, United Kingdom"]
[Date "2018.10.22"]
[Round "3.22"]
[White "Olafsson, Helgi"]
[Black "Leko, Peter"]
[Result "1/2-1/2"]
[TimeControl "40 moves in 100 minutes, f.b. 20 moves in 50 minutes f.b. 15 minutes with a 30 second increment from move 0"]
[WhiteElo "2510"]
[BlackElo "2690"]

1. d4 {[%clk 01:40:55]} {[%emt 00:00:03]} Nf6 {[%clk 01:40:54]} {[%emt
00:00:07]} 2. c4 {[%clk 01:41:19]} {[%emt 00:00:07]} e6 {[%clk 01:41:18]}
{[%emt 00:00:06]} 3. Nf3 {[%clk 01:41:43]} {[%emt 00:00:05]} d5 {[%clk
01:41:41]} {[%emt 00:00:07]} 4. g3 {[%clk 01:41:55]} {[%emt 00:00:19]} Be7
{[%clk 01:40:33]} {[%emt 00:01:38]} 5. Bg2 {[%clk 01:42:11]} {[%emt 00:00:13]}
O-O {[%clk 01:40:56]} {[%emt 00:00:08]} 6. O-O {[%clk 01:42:30]} {[%emt
00:00:11]} dxc4 {[%clk 01:41:20]} {[%emt 00:00:06]} 7. Qc2 {[%clk 01:42:53]}
{[%emt 00:00:07]} a6 {[%clk 01:41:40]} {[%emt 00:00:10]} 8. Qxc4 {[%clk
01:42:56]} {[%emt 00:00:26]} b5 {[%clk 01:42:04]} {[%emt 00:00:07]} 9. Qc2
{[%clk 01:43:23]} {[%emt 00:00:03]} Bb7 {[%clk 01:42:27]} {[%emt 00:00:07]} 10.
Bg5 {[%clk 01:43:44]} {[%emt 00:00:08]} Nbd7 {[%clk 01:40:01]} {[%emt
00:02:56]} 11. Bxf6 {[%clk 01:42:56]} {[%emt 00:01:19]} Nxf6 {[%clk 01:38:41]}
{[%emt 00:01:50]} 12. Nbd2 {[%clk 01:43:19]} {[%emt 00:00:07]} Rc8 {[%clk
01:35:48]} {[%emt 00:03:23]} 13. Nb3 {[%clk 01:43:33]} {[%emt 00:00:16]} c5
{[%clk 01:29:09]} {[%emt 00:07:09]} 14. dxc5 {[%clk 01:43:37]} {[%emt
00:00:26]} Ne4 {[%clk 01:29:10]} {[%emt 00:00:29]} 15. Rfd1 {[%clk 01:23:38]}
{[%emt 00:20:28]} Qc7 {[%clk 01:24:37]} {[%emt 00:05:03]} 16. c6 {[%clk
01:10:59]} {[%emt 00:13:09]} Qxc6 {[%clk 01:23:48]} {[%emt 00:01:18]} 17. Qxc6
{[%clk 01:11:13]} {[%emt 00:00:17]} Bxc6 {[%clk 01:23:58]} {[%emt 00:00:20]} 18.
Ne5 {[%emt 00:08:19]} Bd5 {[%clk 01:23:13]} {[%emt 00:01:12]} 19. Nd7 {[%clk
01:02:24]} {[%emt 00:01:33]} Rfe8 {[%clk 01:22:23]} {[%emt 00:01:20]} 20. Nb6
{[%clk 00:53:44]} {[%emt 00:09:12]} Rc2 {[%clk 01:22:32]} {[%emt 00:00:21]} 21.
Nxd5 {[%clk 00:53:35]} {[%emt 00:00:39]} exd5 {[%clk 01:22:55]} {[%emt
00:00:07]} 22. Rxd5 {[%clk 00:47:23]} {[%emt 00:06:42]} Nf6 {[%clk 00:59:51]}
{[%emt 00:23:33]} 23. Re5 {[%clk 00:40:45]} {[%emt 00:07:08]} Ng4 {[%clk
00:54:04]} {[%emt 00:06:18]} 24. Re4 {[%clk 00:41:03]} {[%emt 00:00:12]} Nf6
{[%clk 00:53:56]} {[%emt 00:00:38]} 25. Re3 {[%clk 00:38:35]} {[%emt 00:02:58]}
Ng4 {[%clk 00:52:49]} {[%emt 00:01:37]} 26. Re4 {[%clk 00:38:17]} {[%emt
00:00:48]} Nf6 {[%clk 00:52:59]} {[%emt 00:00:20]} 27. Re3 {[%clk 00:38:28]}
{[%emt 00:00:19]} Ng4 {[%clk 00:51:44]} {[%emt 00:01:45]} 28. Re4 1/2-1/2

[Event "Chess.com Isle of Man Masters"]
[Site "Villa Marina, Douglas, Isle of Man, United Kingdom"]
[Date "2018.10.22"]
[Round "3.23"]
[White "Shyam, Sundar M."]
[Black "Jones, Gawain C B"]
[Result "1/2-1/2"]
[TimeControl "40 moves in 100 minutes, f.b. 20 moves in 50 minutes f.b. 15 minutes with a 30 second increment from move 0"]
[WhiteElo "2505"]
[BlackElo "2677"]

1. e4 {[%clk 01:40:53]} {[%emt 00:00:06]} e5 {[%clk 01:39:55]} {[%emt
00:01:06]} 2. Nf3 {[%clk 01:41:11]} {[%emt 00:00:12]} Nc6 {[%clk 01:40:19]}
{[%emt 00:00:05]} 3. Nc3 {[%clk 01:41:38]} {[%emt 00:00:04]} Nf6 {[%clk
01:40:42]} {[%emt 00:00:07]} 4. Bb5 {[%clk 01:41:58]} {[%emt 00:00:10]} Bc5
{[%clk 01:40:40]} {[%emt 00:00:32]} 5. O-O {[%clk 01:42:21]} {[%emt 00:00:07]}
O-O {[%clk 01:40:55]} {[%emt 00:00:14]} 6. Nxe5 {[%clk 01:42:42]} {[%emt
00:00:11]} Nxe5 {[%clk 01:41:16]} {[%emt 00:00:08]} 7. d4 {[%clk 01:43:07]}
{[%emt 00:00:05]} Bd6 {[%clk 01:41:33]} {[%emt 00:00:13]} 8. f4 {[%clk
01:43:24]} {[%emt 00:00:14]} Neg4 {[%clk 01:41:50]} {[%emt 00:00:12]} 9. Be2
{[%clk 01:43:34]} {[%emt 00:00:20]} Bb4 {[%clk 01:41:06]} {[%emt 00:01:14]} 10.
Bxg4 {[%clk 01:43:57]} {[%emt 00:00:06]} Bxc3 {[%clk 01:40:17]} {[%emt
00:01:20]} 11. bxc3 {[%clk 01:44:22]} {[%emt 00:00:05]} Nxe4 {[%clk 01:40:24]}
{[%emt 00:00:22]} 12. Bf3 {[%clk 01:40:08]} {[%emt 00:04:45]} d5 {[%clk
01:34:36]} {[%emt 00:06:18]} 13. Bxe4 {[%clk 01:40:18]} {[%emt 00:00:20]} dxe4
{[%clk 01:34:58]} {[%emt 00:00:08]} 14. f5 {[%clk 01:40:46]} {[%emt 00:00:02]}
Re8 {[%clk 01:30:21]} {[%emt 00:05:07]} 15. Be3 {[%clk 01:37:18]} {[%emt
00:03:58]} a5 {[%clk 01:12:20]} {[%emt 00:18:31]} 16. c4 {[%emt 00:29:50]} Qf6
{[%clk 01:10:42]} {[%emt 00:02:03]} 17. Qe2 {[%clk 01:03:58]} {[%emt 00:04:36]}
b6 {[%clk 01:08:43]} {[%emt 00:02:29]} 18. Rf4 {[%clk 00:37:20]} {[%emt
00:27:08]} Ba6 {[%clk 01:06:13]} {[%emt 00:03:00]} 19. Raf1 {[%clk 00:36:50]}
{[%emt 00:01:00]} Rad8 {[%clk 01:01:36]} {[%emt 00:05:07]} 20. c3 {[%clk
00:32:50]} {[%emt 00:04:30]} h6 {[%clk 00:58:22]} {[%emt 00:03:44]} 21. h3
{[%clk 00:25:40]} {[%emt 00:07:40]} Rd6 {[%clk 00:51:47]} {[%emt 00:07:05]} 22.
Bf2 {[%clk 00:18:30]} {[%emt 00:07:41]} Qe7 {[%clk 00:50:55]} {[%emt 00:01:21]}
23. Re1 {[%clk 00:15:05]} {[%emt 00:03:55]} Rc6 {[%clk 00:48:48]} {[%emt
00:02:37]} 24. Qg4 {[%clk 00:14:20]} {[%emt 00:01:15]} Qd7 {[%clk 00:43:09]}
{[%emt 00:06:09]} 25. d5 {[%clk 00:06:47]} {[%emt 00:08:03]} Rxc4 {[%clk
00:42:51]} {[%emt 00:00:48]} 26. Bd4 {[%clk 00:07:14]} {[%emt 00:00:03]} Rxd4
{[%clk 00:40:31]} {[%emt 00:02:50]} 27. cxd4 {[%clk 00:07:43]} {[%emt
00:00:02]} e3 {[%clk 00:40:49]} {[%emt 00:00:12]} 28. Re4 {[%clk 00:07:34]}
{[%emt 00:00:39]} Rxe4 {[%clk 00:38:23]} {[%emt 00:02:56]} 29. Qxe4 {[%clk
00:08:02]} {[%emt 00:00:02]} e2 {[%clk 00:38:46]} {[%emt 00:00:07]} 30. d6
{[%clk 00:05:17]} {[%emt 00:03:15]} Bb5 {[%clk 00:36:46]} {[%emt 00:02:30]} 31.
a4 {[%clk 00:02:44]} {[%emt 00:03:03]} Bxa4 {[%clk 00:34:21]} {[%emt 00:02:55]}
32. dxc7 {[%clk 00:03:07]} {[%emt 00:00:06]} Qxc7 {[%clk 00:34:44]} {[%emt
00:00:08]} 33. Rxe2 {[%clk 00:03:24]} {[%emt 00:00:12]} Bb3 {[%clk 00:33:20]}
{[%emt 00:01:55]} 34. f6 {[%clk 00:01:36]} {[%emt 00:02:18]} gxf6 {[%clk
00:32:59]} {[%emt 00:00:51]} 35. Qe3 {[%clk 00:01:07]} {[%emt 00:01:00]} Bc4
{[%clk 00:32:34]} {[%emt 00:00:55]} 36. Rf2 {[%clk 00:00:59]} {[%emt 00:00:38]}
Qd6 {[%clk 00:28:30]} {[%emt 00:04:34]} 37. Rf4 {[%clk 00:01:25]} {[%emt
00:00:04]} f5 {[%clk 00:28:12]} {[%emt 00:00:49]} 38. Rxf5 {[%clk 00:01:20]}
{[%emt 00:00:34]} a4 {[%clk 00:27:22]} {[%emt 00:01:20]} 39. Qe8+ {[%clk
00:00:48]} {[%emt 00:01:01]} Kg7 {[%clk 00:26:51]} {[%emt 00:01:02]} 40. Qxa4
{[%clk 00:00:31]} {[%emt 00:00:47]} Qxd4+ {[%clk 00:23:20]} {[%emt 00:04:01]}
41. Kh1 {[%clk 00:45:09]} {[%emt 00:05:52]} Qc3 {[%clk 01:07:52]} {[%emt
00:05:58]} 42. Qd1 {[%clk 00:38:13]} {[%emt 00:07:27]} b5 {[%clk 01:04:47]}
{[%emt 00:03:35]} 43. Qg4+ {[%clk 00:36:18]} {[%emt 00:02:24]} Kh8 {[%clk
00:59:22]} {[%emt 00:05:54]} 44. Qf4 {[%clk 00:34:38]} {[%emt 00:02:11]} Kg7
{[%clk 00:56:51]} {[%emt 00:03:00]} 45. Kh2 {[%clk 00:33:58]} {[%emt 00:01:10]}
Qa1 {[%clk 00:56:26]} {[%emt 00:00:55]} 46. Rh5 {[%clk 00:29:02]} {[%emt
00:05:26]} Qa6 {[%clk 00:54:46]} {[%emt 00:02:11]} 47. Rh4 {[%clk 00:27:50]}
{[%emt 00:01:42]} Qb6 {[%clk 00:45:56]} {[%emt 00:09:19]} 48. Qe5+ {[%clk
00:27:25]} {[%emt 00:00:55]} Kg8 {[%clk 00:45:09]} {[%emt 00:01:18]} 49. Rf4
{[%clk 00:19:02]} {[%emt 00:08:53]} Qc6 {[%clk 00:33:03]} {[%emt 00:12:36]} 50.
Rf6 {[%clk 00:08:35]} {[%emt 00:10:57]} Qd5 {[%clk 00:32:53]} {[%emt 00:00:40]}
51. Qxd5 {[%clk 00:08:40]} {[%emt 00:00:26]} Bxd5 {[%clk 00:33:22]} {[%emt
00:00:01]} 52. Rb6 {[%clk 00:09:05]} {[%emt 00:00:05]} Kg7 {[%clk 00:32:17]}
{[%emt 00:01:34]} 53. Rxb5 {[%clk 00:09:33]} {[%emt 00:00:02]} Ba8 {[%clk
00:31:26]} {[%emt 00:01:21]} 54. Kg3 {[%clk 00:09:35]} {[%emt 00:00:28]} Kg6
{[%clk 00:31:06]} {[%emt 00:00:49]} 55. Rb6+ {[%clk 00:10:01]} {[%emt
00:00:05]} f6 {[%clk 00:30:50]} {[%emt 00:00:45]} 56. Rb8 {[%clk 00:10:08]}
{[%emt 00:00:23]} Bd5 {[%clk 00:30:55]} {[%emt 00:00:25]} 57. Kf4 {[%clk
00:10:15]} {[%emt 00:00:23]} h5 {[%clk 00:30:34]} {[%emt 00:00:50]} 58. Rd8
{[%clk 00:07:49]} {[%emt 00:02:56]} Bc6 {[%clk 00:30:36]} {[%emt 00:00:28]} 59.
Kg3 {[%clk 00:06:43]} {[%emt 00:01:36]} Kg7 {[%clk 00:30:12]} {[%emt 00:00:54]}
60. Rc8 {[%clk 00:06:52]} {[%emt 00:00:21]} Be4 {[%clk 00:30:34]} {[%emt
00:00:08]} 61. Rc4 {[%clk 00:06:06]} {[%emt 00:01:16]} Ba8 {[%clk 00:30:31]}
{[%emt 00:00:32]} 62. Rc7+ {[%clk 00:04:23]} {[%emt 00:02:13]} Kh6 {[%clk
00:30:29]} {[%emt 00:00:32]} 63. Rc4 {[%clk 00:11:27]} {[%emt 00:08:26]} Bd5
{[%clk 00:43:40]} {[%emt 00:02:19]} 64. Rb4 {[%clk 00:11:48]} {[%emt 00:00:09]}
Ba8 {[%clk 00:43:31]} {[%emt 00:00:38]} 65. h4 {[%clk 00:11:50]} {[%emt
00:00:28]} Kg7 {[%clk 00:42:56]} {[%emt 00:01:04]} 66. Rb2 {[%clk 00:11:16]}
{[%emt 00:01:04]} Kg6 {[%clk 00:42:56]} {[%emt 00:00:30]} 67. Kf4 {[%clk
00:11:45]} {[%emt 00:00:02]} Bc6 {[%clk 00:42:52]} {[%emt 00:00:34]} 68. Rb8
{[%clk 00:11:44]} {[%emt 00:00:31]} Kf7 {[%clk 00:42:30]} {[%emt 00:00:51]} 69.
g3 {[%clk 00:11:23]} {[%emt 00:00:51]} Ba4 {[%clk 00:39:33]} {[%emt 00:03:27]}
70. Ke4 {[%clk 00:09:44]} {[%emt 00:02:09]} Bd1 {[%clk 00:37:14]} {[%emt
00:02:49]} 71. Kd5 {[%clk 00:09:16]} {[%emt 00:00:57]} Bf3+ {[%clk 00:36:59]}
{[%emt 00:00:46]} 72. Kd6 {[%clk 00:09:39]} {[%emt 00:00:07]} Bg4 {[%clk
00:37:22]} {[%emt 00:00:07]} 73. Rb7+ {[%clk 00:08:51]} {[%emt 00:01:18]} Kf8
{[%clk 00:37:43]} {[%emt 00:00:09]} 74. Rh7 {[%clk 00:07:49]} {[%emt 00:01:32]}
Kg8 {[%clk 00:37:54]} {[%emt 00:00:18]} 75. Rc7 {[%clk 00:08:03]} {[%emt
00:00:17]} Kf8 {[%clk 00:38:18]} {[%emt 00:00:06]} 76. Ra7 {[%clk 00:08:31]}
{[%emt 00:00:02]} Bh3 {[%clk 00:38:27]} {[%emt 00:00:20]} 77. Re7 {[%clk
00:06:13]} {[%emt 00:02:48]} Bg4 {[%clk 00:38:44]} {[%emt 00:00:13]} 78. Re4
{[%clk 00:06:42]} {[%emt 00:00:02]} Bh3 {[%clk 00:39:07]} {[%emt 00:00:07]} 79.
Kc7 {[%clk 00:07:03]} {[%emt 00:00:10]} Kf7 {[%clk 00:39:25]} {[%emt 00:00:12]}
80. Kd8 {[%clk 00:07:28]} {[%emt 00:00:05]} Bf5 {[%clk 00:39:24]} {[%emt
00:00:30]} 81. Rb4 {[%clk 00:05:35]} {[%emt 00:02:23]} Bh3 {[%clk 00:39:34]}
{[%emt 00:00:20]} 82. Rf4 {[%clk 00:06:01]} {[%emt 00:00:04]} Be6 {[%clk
00:39:55]} {[%emt 00:00:09]} 83. Kc7 {[%clk 00:06:25]} {[%emt 00:00:07]} Bh3
{[%clk 00:40:11]} {[%emt 00:00:14]} 84. Kd6 {[%clk 00:06:52]} {[%emt 00:00:03]}
Bc8 {[%clk 00:40:33]} {[%emt 00:00:07]} 85. Rc4 {[%clk 00:07:07]} {[%emt
00:00:16]} Bh3 {[%clk 00:40:54]} {[%emt 00:00:08]} 86. Rc5 {[%clk 00:07:34]}
{[%emt 00:00:03]} Bg4 {[%clk 00:41:17]} {[%emt 00:00:06]} 87. Ra5 {[%clk
00:08:02]} {[%emt 00:00:03]} Kf8 {[%clk 00:41:37]} {[%emt 00:00:10]} 88. Kd5
{[%clk 00:08:11]} {[%emt 00:00:21]} Kf7 {[%clk 00:41:53]} {[%emt 00:00:13]} 89.
Ke4 {[%clk 00:08:39]} {[%emt 00:00:03]} Kf8 {[%clk 00:41:59]} {[%emt 00:00:24]}
90. Kf4 {[%clk 00:08:09]} {[%emt 00:01:00]} Kf7 {[%clk 00:42:20]} {[%emt
00:00:09]} 91. Ra8 {[%clk 00:08:32]} {[%emt 00:00:07]} Bh3 {[%clk 00:42:41]}
{[%emt 00:00:09]} 92. Rh8 {[%clk 00:08:08]} {[%emt 00:00:54]} Bg4 {[%clk
00:43:06]} 1/2-1/2